[Event "Late-Titled-Tuesday-Blitz-September-26-2023"]
[Site "Chess.com"]
[Date "2023.09.26"]
[Round "1"]
[White "BillieKimbah"]
[Black "Eloist"]
[Result "1-0"]
[WhiteElo "2983"]
[BlackElo "2495"]
[TimeControl "180+1"]
[EndTime "14:07:27 PDT"]
[Termination "BillieKimbah won on time"]

1. Nf3 {[%clk 0:03:00.9]} 1... Nf6 {[%clk 0:02:58.7]} 2. g3 {[%clk 0:03:01.2]}
2... b6 {[%clk 0:02:58.1]} 3. Bg2 {[%clk 0:03:00.8]} 3... Bb7 {[%clk 0:02:58.7]}
4. O-O {[%clk 0:03:01]} 4... e6 {[%clk 0:02:59.1]} 5. d3 {[%clk 0:03:01.2]} 5...
d5 {[%clk 0:02:59.2]} 6. Nbd2 {[%clk 0:03:00.3]} 6... Nbd7 {[%clk 0:02:58.5]} 7.
e4 {[%clk 0:02:56.4]} 7... dxe4 {[%clk 0:02:58.3]} 8. Ng5 {[%clk 0:02:54.4]}
8... Nc5 {[%clk 0:02:57.9]} 9. Ngxe4 {[%clk 0:02:47.9]} 9... Nfxe4 {[%clk
0:02:57]} 10. dxe4 {[%clk 0:02:47.8]} 10... e5 {[%clk 0:02:45.7]} 11. Nc4 {[%clk
0:02:24.4]} 11... Qxd1 {[%clk 0:02:40.2]} 12. Rxd1 {[%clk 0:02:25.3]} 12... f6
{[%clk 0:02:24.3]} 13. f3 {[%clk 0:02:07.6]} 13... Ne6 {[%clk 0:02:17.9]} 14. c3
{[%clk 0:02:05.3]} 14... Bc5+ {[%clk 0:02:15.5]} 15. Ne3 {[%clk 0:01:58.1]}
15... a5 {[%clk 0:02:02.9]} 16. Bf1 {[%clk 0:01:58.1]} 16... Rd8 {[%clk
0:01:34.6]} 17. Rxd8+ {[%clk 0:01:55.3]} 17... Kxd8 {[%clk 0:01:33.6]} 18. Kg2
{[%clk 0:01:52.8]} 18... Kc8 {[%clk 0:01:21.8]} 19. Bc4 {[%clk 0:01:52.3]} 19...
Re8 {[%clk 0:01:09.2]} 20. a3 {[%clk 0:01:44.2]} 20... Kb8 {[%clk 0:00:40.6]}
21. b4 {[%clk 0:01:42.6]} 21... axb4 {[%clk 0:00:39.3]} 22. axb4 {[%clk
0:01:43.5]} 22... Bf8 {[%clk 0:00:35.6]} 23. Kf2 {[%clk 0:01:43]} 23... c6
{[%clk 0:00:24.6]} 24. Ke2 {[%clk 0:01:40.8]} 24... Nc7 {[%clk 0:00:24]} 25. h4
{[%clk 0:01:33.9]} 25... h5 {[%clk 0:00:20.6]} 26. Bf7 {[%clk 0:01:33]} 26...
Rd8 {[%clk 0:00:19]} 27. Bxh5 {[%clk 0:01:23.6]} 27... Ba6+ {[%clk 0:00:18.7]}
28. Ke1 {[%clk 0:01:23.7]} 28... Rd3 {[%clk 0:00:17.6]} 29. Bd2 {[%clk
0:01:23.4]} 29... Kb7 {[%clk 0:00:10.9]} 30. Bf7 {[%clk 0:01:18.9]} 30... Nb5
{[%clk 0:00:06.3]} 31. Bc4 {[%clk 0:01:15.4]} 31... Rd8 {[%clk 0:00:06.2]} 32.
h5 {[%clk 0:01:14.8]} 32... Nc7 {[%clk 0:00:06]} 33. Bxa6+ {[%clk 0:01:14.4]}
33... Nxa6 {[%clk 0:00:06.9]} 34. Ke2 {[%clk 0:01:13.8]} 34... Nc7 {[%clk
0:00:06.8]} 35. Nf5 {[%clk 0:01:14]} 35... Nb5 {[%clk 0:00:06.4]} 36. g4 {[%clk
0:01:12.5]} 36... c5 {[%clk 0:00:06.3]} 37. c4 {[%clk 0:01:07.8]} 37... Nd4+
{[%clk 0:00:06]} 38. Nxd4 {[%clk 0:01:07.7]} 38... Rxd4 {[%clk 0:00:05.1]} 39.
bxc5 {[%clk 0:01:03.6]} 39... Bxc5 {[%clk 0:00:05.2]} 40. Rc1 {[%clk 0:01:02.5]}
40... Kc6 {[%clk 0:00:04.1]} 41. g5 {[%clk 0:00:56.2]} 41... fxg5 {[%clk
0:00:03.8]} 42. Bxg5 {[%clk 0:00:57.1]} 42... Rd7 {[%clk 0:00:03.9]} 43. Rh1
{[%clk 0:00:49.2]} 43... Ra7 {[%clk 0:00:02.9]} 44. Rd1 {[%clk 0:00:37.7]} 44...
Ra4 {[%clk 0:00:02.4]} 45. Rd8 {[%clk 0:00:35.1]} 45... Rxc4 {[%clk 0:00:02.5]}
46. Rg8 {[%clk 0:00:35.6]} 46... Rc2+ {[%clk 0:00:02.2]} 47. Kd3 {[%clk
0:00:35.7]} 47... Rf2 {[%clk 0:00:02.2]} 48. Rxg7 {[%clk 0:00:34.1]} 48... Rxf3+
{[%clk 0:00:02.3]} 49. Ke2 {[%clk 0:00:33.3]} 49... Rg3 {[%clk 0:00:02]} 50. h6
{[%clk 0:00:32.6]} 1-0

[Event "Late-Titled-Tuesday-Blitz-September-26-2023"]
[Site "Chess.com"]
[Date "2023.09.26"]
[Round "1"]
[White "RonArtest77"]
[Black "VincentKeymer"]
[Result "0-1"]
[WhiteElo "2498"]
[BlackElo "3042"]
[TimeControl "180+1"]
[EndTime "14:07:28 PDT"]
[Termination "VincentKeymer won on time"]

1. d4 {[%clk 0:02:59.6]} 1... Nf6 {[%clk 0:02:49.1]} 2. Bg5 {[%clk 0:02:59]}
2... d5 {[%clk 0:02:47.2]} 3. e3 {[%clk 0:02:57.7]} 3... c5 {[%clk 0:02:46.8]}
4. c3 {[%clk 0:02:47.9]} 4... Ne4 {[%clk 0:02:42.2]} 5. Bf4 {[%clk 0:02:44.8]}
5... Qb6 {[%clk 0:02:31.2]} 6. b3 {[%clk 0:02:21.3]} 6... Nc6 {[%clk 0:02:23.7]}
7. Nf3 {[%clk 0:02:19.6]} 7... cxd4 {[%clk 0:02:17.2]} 8. exd4 {[%clk
0:02:17.2]} 8... Bf5 {[%clk 0:02:17]} 9. Bd3 {[%clk 0:02:15]} 9... e6 {[%clk
0:02:15.6]} 10. Nh4 {[%clk 0:01:51.7]} 10... Nxc3 {[%clk 0:01:37.8]} 11. Nxc3
{[%clk 0:01:42.7]} 11... Bb4 {[%clk 0:01:37.4]} 12. O-O {[%clk 0:01:12]} 12...
Bxc3 {[%clk 0:01:33.8]} 13. Nxf5 {[%clk 0:01:11.8]} 13... exf5 {[%clk
0:00:44.4]} 14. Qe2+ {[%clk 0:01:05.6]} 14... Kf8 {[%clk 0:00:44.4]} 15. Rac1
{[%clk 0:00:43]} 15... Bxd4 {[%clk 0:00:32.3]} 16. Bd6+ {[%clk 0:00:32.9]} 16...
Kg8 {[%clk 0:00:31.6]} 17. Bxf5 {[%clk 0:00:33.5]} 17... g6 {[%clk 0:00:29.8]}
18. Bb1 {[%clk 0:00:32.1]} 18... Kg7 {[%clk 0:00:26]} 19. Rcd1 {[%clk 0:00:32]}
19... Rad8 {[%clk 0:00:21.6]} 20. Ba3 {[%clk 0:00:31.3]} 20... Bf6 {[%clk
0:00:21.2]} 21. h4 {[%clk 0:00:29.7]} 21... Rhe8 {[%clk 0:00:18.6]} 22. Qg4
{[%clk 0:00:28]} 22... Ne5 {[%clk 0:00:17.5]} 23. Qg3 {[%clk 0:00:28.6]} 23...
h5 {[%clk 0:00:16.9]} 24. Bb2 {[%clk 0:00:27.9]} 24... d4 {[%clk 0:00:17.1]} 25.
Be4 {[%clk 0:00:14.7]} 25... Ng4 {[%clk 0:00:15.9]} 26. Bf3 {[%clk 0:00:15]}
26... Ne5 {[%clk 0:00:16.1]} 27. Be4 {[%clk 0:00:13.9]} 27... a5 {[%clk
0:00:15.8]} 28. Bc1 {[%clk 0:00:12]} 28... Rd7 {[%clk 0:00:08.7]} 29. Qf4 {[%clk
0:00:12.3]} 29... Rh8 {[%clk 0:00:07.4]} 30. Bd2 {[%clk 0:00:10.8]} 30... Qd8
{[%clk 0:00:07.7]} 31. g3 {[%clk 0:00:10.5]} 31... Ng4 {[%clk 0:00:07.4]} 32.
Bb1 {[%clk 0:00:10.1]} 32... d3 {[%clk 0:00:07.3]} 33. Rfe1 {[%clk 0:00:09]}
33... Bd4 {[%clk 0:00:07.1]} 34. Rf1 {[%clk 0:00:07.5]} 34... Rd6 {[%clk
0:00:07.7]} 35. Kg2 {[%clk 0:00:07.9]} 35... Rf6 {[%clk 0:00:07.8]} 36. Qe4
{[%clk 0:00:08.5]} 36... Nxf2 {[%clk 0:00:07.8]} 37. Rxf2 {[%clk 0:00:04.8]}
37... Rxf2+ {[%clk 0:00:07.6]} 38. Kh1 {[%clk 0:00:05.7]} 38... Re8 {[%clk
0:00:06.8]} 39. Qxd3 {[%clk 0:00:01.5]} 39... Qd7 {[%clk 0:00:07.3]} 40. Qc4
{[%clk 0:00:01.3]} 40... Qh3+ {[%clk 0:00:07.5]} 0-1

[Event "Late-Titled-Tuesday-Blitz-September-26-2023"]
[Site "Chess.com"]
[Date "2023.09.26"]
[Round "1"]
[White "scandalgod"]
[Black "sergoy"]
[Result "1-0"]
[WhiteElo "2502"]
[BlackElo "2943"]
[TimeControl "180+1"]
[EndTime "14:07:28 PDT"]
[Termination "scandalgod won by resignation"]

1. d4 {[%clk 0:02:59.4]} 1... Nf6 {[%clk 0:02:59.6]} 2. c4 {[%clk 0:02:56.2]}
2... e6 {[%clk 0:03:00.2]} 3. g3 {[%clk 0:02:54.1]} 3... d5 {[%clk 0:02:56.7]}
4. Nf3 {[%clk 0:02:53.6]} 4... Bb4+ {[%clk 0:02:56.4]} 5. Bd2 {[%clk 0:02:52.7]}
5... a5 {[%clk 0:02:57]} 6. Bg2 {[%clk 0:02:51.3]} 6... O-O {[%clk 0:02:56.4]}
7. O-O {[%clk 0:02:51.3]} 7... Be7 {[%clk 0:02:56.6]} 8. Qc2 {[%clk 0:02:50]}
8... c6 {[%clk 0:02:56.8]} 9. Rd1 {[%clk 0:02:47.3]} 9... Nbd7 {[%clk 0:02:57]}
10. b3 {[%clk 0:02:45.8]} 10... b6 {[%clk 0:02:57]} 11. Bf4 {[%clk 0:02:43.2]}
11... Ba6 {[%clk 0:02:56.9]} 12. Nbd2 {[%clk 0:02:42.7]} 12... Nh5 {[%clk
0:02:56.7]} 13. Be3 {[%clk 0:02:25.3]} 13... Rc8 {[%clk 0:02:56.6]} 14. Ne5
{[%clk 0:01:40.6]} 14... Nhf6 {[%clk 0:02:56]} 15. Rac1 {[%clk 0:01:35]} 15...
Ba3 {[%clk 0:02:46.4]} 16. Rb1 {[%clk 0:01:34.9]} 16... Nxe5 {[%clk 0:02:36.4]}
17. dxe5 {[%clk 0:01:34.1]} 17... Ng4 {[%clk 0:02:37.1]} 18. Bd4 {[%clk
0:01:30.6]} 18... c5 {[%clk 0:02:30.7]} 19. Ba1 {[%clk 0:01:28.4]} 19... d4
{[%clk 0:02:13.1]} 20. Qe4 {[%clk 0:01:27.6]} 20... Nh6 {[%clk 0:02:13.1]} 21.
e3 {[%clk 0:01:19.5]} 21... dxe3 {[%clk 0:02:09.3]} 22. Qxe3 {[%clk 0:01:19.2]}
22... Nf5 {[%clk 0:02:09.6]} 23. Qe4 {[%clk 0:01:16.6]} 23... Qe7 {[%clk
0:02:02.5]} 24. Qg4 {[%clk 0:01:08.7]} 24... Bb7 {[%clk 0:01:46.5]} 25. Bxb7
{[%clk 0:01:04.6]} 25... Qxb7 {[%clk 0:01:47.4]} 26. Ne4 {[%clk 0:01:05.2]}
26... Rcd8 {[%clk 0:01:43.1]} 27. h4 {[%clk 0:00:55.7]} 27... Qe7 {[%clk
0:01:35]} 28. Rd6 {[%clk 0:00:52.3]} 28... Bb4 {[%clk 0:01:15.3]} 29. Rbd1
{[%clk 0:00:51.1]} 29... Kh8 {[%clk 0:01:14.9]} 30. R1d3 {[%clk 0:00:37.4]}
30... Rg8 {[%clk 0:01:08.9]} 31. Qd1 {[%clk 0:00:32.9]} 31... Nxd6 {[%clk
0:00:53.2]} 32. exd6 {[%clk 0:00:31.8]} 32... Qe8 {[%clk 0:00:49.5]} 33. Nf6
{[%clk 0:00:30.2]} 33... gxf6 {[%clk 0:00:33.8]} 34. Bxf6+ {[%clk 0:00:29.4]}
34... Rg7 {[%clk 0:00:34.4]} 35. Qa1 {[%clk 0:00:27.8]} 35... Qf8 {[%clk
0:00:24.5]} 36. a3 {[%clk 0:00:27.9]} 36... Kg8 {[%clk 0:00:19.2]} 37. Bxd8
{[%clk 0:00:22.9]} 37... Qxd8 {[%clk 0:00:17.7]} 38. axb4 {[%clk 0:00:23.1]}
38... cxb4 {[%clk 0:00:18.3]} 39. Qe5 {[%clk 0:00:21.1]} 39... Rg4 {[%clk
0:00:15.8]} 40. d7 {[%clk 0:00:20.3]} 40... a4 {[%clk 0:00:11.7]} 41. bxa4
{[%clk 0:00:19.9]} 41... Rxc4 {[%clk 0:00:11.4]} 42. Qg5+ {[%clk 0:00:19.2]}
42... Qxg5 {[%clk 0:00:05.3]} 43. hxg5 {[%clk 0:00:19.4]} 43... Kg7 {[%clk
0:00:05.2]} 44. d8=Q {[%clk 0:00:19.3]} 44... Rc5 {[%clk 0:00:04.3]} 45. Qf6+
{[%clk 0:00:19.3]} 1-0

[Event "Late-Titled-Tuesday-Blitz-September-26-2023"]
[Site "Chess.com"]
[Date "2023.09.26"]
[Round "1"]
[White "krzyzan94"]
[Black "Taran2004"]
[Result "1-0"]
[WhiteElo "2814"]
[BlackElo "2436"]
[TimeControl "180+1"]
[EndTime "14:07:30 PDT"]
[Termination "krzyzan94 won by resignation"]

1. Nf3 {[%clk 0:02:58.8]} 1... Nf6 {[%clk 0:02:59.5]} 2. g3 {[%clk 0:02:58.3]}
2... g6 {[%clk 0:02:59.6]} 3. Bg2 {[%clk 0:02:59]} 3... Bg7 {[%clk 0:03:00.3]}
4. O-O {[%clk 0:02:59.7]} 4... O-O {[%clk 0:03:00.7]} 5. c4 {[%clk 0:03:00]}
5... c5 {[%clk 0:03:00.8]} 6. d4 {[%clk 0:02:59.5]} 6... cxd4 {[%clk 0:03:01.3]}
7. Nxd4 {[%clk 0:02:58.6]} 7... Nc6 {[%clk 0:03:02]} 8. Nc3 {[%clk 0:02:58.9]}
8... a6 {[%clk 0:03:00.6]} 9. b3 {[%clk 0:02:54.1]} 9... Qc7 {[%clk 0:02:50.8]}
10. Bb2 {[%clk 0:02:51.2]} 10... d6 {[%clk 0:02:51]} 11. Rc1 {[%clk 0:02:47.8]}
11... Nxd4 {[%clk 0:02:50.5]} 12. Qxd4 {[%clk 0:02:47.7]} 12... Be6 {[%clk
0:02:46.4]} 13. Rfd1 {[%clk 0:02:34.6]} 13... Rac8 {[%clk 0:02:33.9]} 14. Qh4
{[%clk 0:02:32.6]} 14... Rfd8 {[%clk 0:02:31.5]} 15. Nd5 {[%clk 0:01:52.9]}
15... Bxd5 {[%clk 0:02:24.5]} 16. Bxd5 {[%clk 0:01:52.6]} 16... b5 {[%clk
0:01:58.9]} 17. Bg2 {[%clk 0:01:28]} 17... Qa5 {[%clk 0:01:55.2]} 18. a3 {[%clk
0:01:24.4]} 18... bxc4 {[%clk 0:01:50.5]} 19. Rxc4 {[%clk 0:01:24.2]} 19... Rb8
{[%clk 0:01:46.5]} 20. b4 {[%clk 0:01:22]} 20... Qa4 {[%clk 0:01:42.4]} 21. Rdc1
{[%clk 0:01:19]} 21... d5 {[%clk 0:01:35.5]} 22. R4c2 {[%clk 0:01:11.9]} 22...
a5 {[%clk 0:01:23]} 23. Be5 {[%clk 0:01:02.4]} 23... Ra8 {[%clk 0:01:11.2]} 24.
bxa5 {[%clk 0:00:58.4]} 24... Qxa3 {[%clk 0:01:02.7]} 25. Bc7 {[%clk 0:00:39.9]}
25... Rdc8 {[%clk 0:01:01]} 26. Qf4 {[%clk 0:00:38.3]} 26... Qb3 {[%clk
0:00:48.5]} 27. Qf3 {[%clk 0:00:17.9]} 27... Qxf3 {[%clk 0:00:40.4]} 28. Bxf3
{[%clk 0:00:17.3]} 28... e6 {[%clk 0:00:41]} 29. Bb6 {[%clk 0:00:17]} 29... Rxc2
{[%clk 0:00:39.8]} 30. Rxc2 {[%clk 0:00:17.9]} 30... Nd7 {[%clk 0:00:40.2]} 31.
Bc7 {[%clk 0:00:17.1]} 31... Ne5 {[%clk 0:00:36.2]} 32. Bg2 {[%clk 0:00:13.9]}
32... Ra6 {[%clk 0:00:31.4]} 33. e4 {[%clk 0:00:13.6]} 33... d4 {[%clk
0:00:24.6]} 34. f4 {[%clk 0:00:11]} 34... Rc6 {[%clk 0:00:20.6]} 35. Rxc6 {[%clk
0:00:09.5]} 35... Nxc6 {[%clk 0:00:21.5]} 36. e5 {[%clk 0:00:10.1]} 36... Nb4
{[%clk 0:00:20.3]} 37. Bd6 {[%clk 0:00:06.7]} 37... Bf8 {[%clk 0:00:20.8]} 38.
Bf1 {[%clk 0:00:03.7]} 38... Bxd6 {[%clk 0:00:19.7]} 39. exd6 {[%clk 0:00:04.6]}
39... Nc6 {[%clk 0:00:20]} 40. a6 {[%clk 0:00:04.1]} 40... Kf8 {[%clk
0:00:20.5]} 41. Bb5 {[%clk 0:00:03.8]} 41... Na7 {[%clk 0:00:20.3]} 42. Ba4
{[%clk 0:00:02.9]} 42... f6 {[%clk 0:00:20.8]} 43. Kf2 {[%clk 0:00:02.6]} 43...
e5 {[%clk 0:00:21.3]} 44. Kf3 {[%clk 0:00:02.9]} 44... Kf7 {[%clk 0:00:21.3]}
45. Ke4 {[%clk 0:00:03.3]} 45... Ke6 {[%clk 0:00:21.8]} 46. d7 {[%clk
0:00:03.7]} 46... Kd6 {[%clk 0:00:19]} 47. fxe5+ {[%clk 0:00:03.8]} 47... fxe5
{[%clk 0:00:16.8]} 48. d8=Q+ {[%clk 0:00:04.3]} 1-0

[Event "Late-Titled-Tuesday-Blitz-September-26-2023"]
[Site "Chess.com"]
[Date "2023.09.26"]
[Round "1"]
[White "czasnaszachy"]
[Black "Mykola-Bortnyk"]
[Result "0-1"]
[WhiteElo "2493"]
[BlackElo "2982"]
[TimeControl "180+1"]
[EndTime "14:07:32 PDT"]
[Termination "Mykola-Bortnyk won on time"]

1. d4 {[%clk 0:02:53.8]} 1... Nf6 {[%clk 0:02:59.1]} 2. c4 {[%clk 0:02:53.5]}
2... e6 {[%clk 0:02:59.5]} 3. g3 {[%clk 0:02:52.3]} 3... d5 {[%clk 0:02:58.6]}
4. Nf3 {[%clk 0:02:51.9]} 4... dxc4 {[%clk 0:02:58.7]} 5. Bg2 {[%clk 0:02:51.6]}
5... Bd7 {[%clk 0:02:59.4]} 6. Ne5 {[%clk 0:02:47.6]} 6... Bc6 {[%clk
0:02:58.7]} 7. Nxc6 {[%clk 0:02:47.1]} 7... Nxc6 {[%clk 0:02:59.6]} 8. e3 {[%clk
0:02:46.3]} 8... Qd7 {[%clk 0:02:56.1]} 9. O-O {[%clk 0:02:46]} 9... Be7 {[%clk
0:02:47.9]} 10. Nd2 {[%clk 0:02:45.4]} 10... e5 {[%clk 0:02:22.5]} 11. Bxc6
{[%clk 0:02:37.5]} 11... Qxc6 {[%clk 0:02:21]} 12. dxe5 {[%clk 0:02:37.4]} 12...
Nd7 {[%clk 0:02:21.5]} 13. f4 {[%clk 0:02:31.7]} 13... O-O {[%clk 0:02:15.9]}
14. Qf3 {[%clk 0:02:25.7]} 14... Qxf3 {[%clk 0:02:07.8]} 15. Rxf3 {[%clk
0:02:25.3]} 15... b5 {[%clk 0:02:07.9]} 16. Ne4 {[%clk 0:01:44.6]} 16... Rad8
{[%clk 0:01:46.6]} 17. Bd2 {[%clk 0:01:43.8]} 17... f6 {[%clk 0:01:43.3]} 18.
Ba5 {[%clk 0:01:31.3]} 18... fxe5 {[%clk 0:01:37.4]} 19. Bxc7 {[%clk 0:01:30.3]}
19... Rc8 {[%clk 0:01:37.8]} 20. Bd6 {[%clk 0:01:28.1]} 20... Rce8 {[%clk
0:01:26.1]} 21. Bxe7 {[%clk 0:01:22.8]} 21... Rxe7 {[%clk 0:01:26.2]} 22. f5
{[%clk 0:01:22.2]} 22... Nf6 {[%clk 0:01:09.5]} 23. Nxf6+ {[%clk 0:01:14.3]}
23... Rxf6 {[%clk 0:01:10.4]} 24. e4 {[%clk 0:01:11]} 24... Rd7 {[%clk
0:01:07.8]} 25. a4 {[%clk 0:01:08.9]} 25... b4 {[%clk 0:01:03.6]} 26. Rf2 {[%clk
0:00:52.4]} 26... Rd4 {[%clk 0:01:03.1]} 27. Re2 {[%clk 0:00:52.6]} 27... a5
{[%clk 0:01:03.6]} 28. Kf2 {[%clk 0:00:52.1]} 28... Rfd6 {[%clk 0:00:54.2]} 29.
g4 {[%clk 0:00:51.2]} 29... h6 {[%clk 0:00:54.5]} 30. h4 {[%clk 0:00:51]} 30...
Rd3 {[%clk 0:00:53.8]} 31. Rc1 {[%clk 0:00:46.8]} 31... R6d4 {[%clk 0:00:53.9]}
32. Kg2 {[%clk 0:00:32.6]} 32... Kf7 {[%clk 0:00:34.2]} 33. g5 {[%clk
0:00:32.7]} 33... c3 {[%clk 0:00:28.8]} 34. bxc3 {[%clk 0:00:32.3]} 34... bxc3
{[%clk 0:00:29.7]} 35. Rb1 {[%clk 0:00:30.5]} 35... Rb4 {[%clk 0:00:29.6]} 36.
Rf1 {[%clk 0:00:23.8]} 36... hxg5 {[%clk 0:00:26.8]} 37. hxg5 {[%clk 0:00:23.2]}
37... Rxa4 {[%clk 0:00:23.4]} 38. f6 {[%clk 0:00:20.2]} 38... gxf6 {[%clk
0:00:22.1]} 39. Rxf6+ {[%clk 0:00:19.2]} 39... Kg7 {[%clk 0:00:22.9]} 40. Ref2
{[%clk 0:00:17.9]} 40... Rd2 {[%clk 0:00:16.1]} 41. Rf7+ {[%clk 0:00:14.2]}
41... Kg6 {[%clk 0:00:16.7]} 42. Rf6+ {[%clk 0:00:13.4]} 42... Kxg5 {[%clk
0:00:17.4]} 43. Rf5+ {[%clk 0:00:13.5]} 43... Kg4 {[%clk 0:00:18]} 44. Rxe5
{[%clk 0:00:12.4]} 44... Rxf2+ {[%clk 0:00:11.5]} 45. Kxf2 {[%clk 0:00:12.2]}
45... Rc4 {[%clk 0:00:12.3]} 0-1

[Event "Late-Titled-Tuesday-Blitz-September-26-2023"]
[Site "Chess.com"]
[Date "2023.09.26"]
[Round "1"]
[White "Bodhanas"]
[Black "reevecanada"]
[Result "1-0"]
[WhiteElo "2076"]
[BlackElo "2506"]
[TimeControl "180+1"]
[EndTime "14:07:32 PDT"]
[Termination "Bodhanas won by checkmate"]

1. d4 {[%clk 0:02:58.3]} 1... Nf6 {[%clk 0:02:57.8]} 2. Nf3 {[%clk 0:02:56.6]}
2... g6 {[%clk 0:02:57.5]} 3. g3 {[%clk 0:02:54.4]} 3... Bg7 {[%clk 0:02:57.4]}
4. Bg2 {[%clk 0:02:50.9]} 4... O-O {[%clk 0:02:57.1]} 5. O-O {[%clk 0:02:49.8]}
5... d5 {[%clk 0:02:56.3]} 6. c3 {[%clk 0:02:43.4]} 6... Nbd7 {[%clk 0:02:55.7]}
7. Nbd2 {[%clk 0:02:42]} 7... c5 {[%clk 0:02:54.6]} 8. Re1 {[%clk 0:02:37.2]}
8... b6 {[%clk 0:02:53.2]} 9. e4 {[%clk 0:02:27.1]} 9... dxe4 {[%clk 0:02:51]}
10. Nxe4 {[%clk 0:02:26.5]} 10... Nxe4 {[%clk 0:02:50.5]} 11. Rxe4 {[%clk
0:02:24.3]} 11... Bb7 {[%clk 0:02:50]} 12. Re1 {[%clk 0:02:16.9]} 12... cxd4
{[%clk 0:02:46.3]} 13. Nxd4 {[%clk 0:02:14.2]} 13... Bxg2 {[%clk 0:02:44.6]} 14.
Kxg2 {[%clk 0:02:13.9]} 14... e5 {[%clk 0:02:27.9]} 15. Nb3 {[%clk 0:01:50.4]}
15... Qc7 {[%clk 0:02:17.9]} 16. Be3 {[%clk 0:01:42.1]} 16... Rad8 {[%clk
0:02:16.8]} 17. Qe2 {[%clk 0:01:31.4]} 17... f5 {[%clk 0:02:16]} 18. f4 {[%clk
0:01:22.6]} 18... Qb7+ {[%clk 0:02:07.9]} 19. Qf3 {[%clk 0:01:20.2]} 19... e4
{[%clk 0:02:07.6]} 20. Qe2 {[%clk 0:01:19.6]} 20... Nf6 {[%clk 0:02:07.1]} 21.
Nd4 {[%clk 0:01:15.1]} 21... Nd5 {[%clk 0:02:06.9]} 22. Ne6 {[%clk 0:01:11.1]}
22... Nxe3+ {[%clk 0:02:06.3]} 23. Qxe3 {[%clk 0:01:04.7]} 23... Rd3 {[%clk
0:02:05]} 24. Qe2 {[%clk 0:01:01.1]} 24... Re8 {[%clk 0:02:02.8]} 25. Nxg7
{[%clk 0:00:58.3]} 25... Kxg7 {[%clk 0:02:02.1]} 26. Rad1 {[%clk 0:00:55.2]}
26... Red8 {[%clk 0:01:51]} 27. Rxd3 {[%clk 0:00:54.1]} 27... Rxd3 {[%clk
0:01:50.7]} 28. Rd1 {[%clk 0:00:51]} 28... e3+ {[%clk 0:01:29.2]} 29. Kg1 {[%clk
0:00:47.8]} 29... Rxd1+ {[%clk 0:01:24.5]} 30. Qxd1 {[%clk 0:00:46.8]} 30... Qe4
{[%clk 0:01:22.4]} 31. Qd4+ {[%clk 0:00:38.2]} 31... Qxd4 {[%clk 0:00:36.2]} 32.
cxd4 {[%clk 0:00:38]} 32... Kf6 {[%clk 0:00:35.9]} 33. Kf1 {[%clk 0:00:38.5]}
33... Ke6 {[%clk 0:00:36.5]} 34. Ke2 {[%clk 0:00:39.1]} 34... Kd5 {[%clk
0:00:37.2]} 35. Kxe3 {[%clk 0:00:39.5]} 35... Kc4 {[%clk 0:00:37.6]} 36. h3
{[%clk 0:00:34.8]} 36... h5 {[%clk 0:00:36.8]} 37. h4 {[%clk 0:00:34.6]} 37...
b5 {[%clk 0:00:36.2]} 38. b3+ {[%clk 0:00:33.8]} 38... Kd5 {[%clk 0:00:36.1]}
39. a3 {[%clk 0:00:27.1]} 39... a5 {[%clk 0:00:31.2]} 40. Kd3 {[%clk 0:00:20.3]}
40... Kd6 {[%clk 0:00:20.1]} 41. a4 {[%clk 0:00:17.4]} 41... bxa4 {[%clk
0:00:18.3]} 42. bxa4 {[%clk 0:00:17.5]} 42... Kd5 {[%clk 0:00:17.4]} 43. Kc3
{[%clk 0:00:17.4]} 43... Ke4 {[%clk 0:00:17.8]} 44. Kc4 {[%clk 0:00:18]} 44...
Kf3 {[%clk 0:00:18.3]} 45. d5 {[%clk 0:00:18.6]} 45... Kxg3 {[%clk 0:00:18.6]}
46. d6 {[%clk 0:00:19.3]} 46... g5 {[%clk 0:00:15.4]} 47. fxg5 {[%clk
0:00:17.5]} 47... f4 {[%clk 0:00:13.8]} 48. d7 {[%clk 0:00:18]} 48... f3 {[%clk
0:00:13.8]} 49. d8=Q {[%clk 0:00:18]} 49... f2 {[%clk 0:00:14.5]} 50. Qd1 {[%clk
0:00:17.5]} 50... Kg2 {[%clk 0:00:14.8]} 51. g6 {[%clk 0:00:17.4]} 51... f1=Q+
{[%clk 0:00:15.3]} 52. Qxf1+ {[%clk 0:00:17.6]} 52... Kxf1 {[%clk 0:00:16.2]}
53. g7 {[%clk 0:00:17.7]} 53... Ke1 {[%clk 0:00:17.1]} 54. g8=Q {[%clk
0:00:17.7]} 54... Kd1 {[%clk 0:00:18]} 55. Qg2 {[%clk 0:00:17.7]} 55... Kc1
{[%clk 0:00:18.9]} 56. Kc3 {[%clk 0:00:17.9]} 56... Kb1 {[%clk 0:00:19.8]} 57.
Qb2# {[%clk 0:00:17.8]} 1-0